Cogmind - Beta 14 @@@ ROGUE MODE // 2024.09.26 @ 22:35:05 Player: RrQq Result: Destroyed by D-53 Grenadier with Mini Grenade Launcher Performance ------------- Evolutions (0) 0 Regions Visited (4) 800 Robots Destroyed (36) 180 Value Destroyed (780) 780 Prototype IDs (4) 80 Alien Tech Used (0) 0 Bonus (81) 81 TOTAL SCORE: 1921 Bonus ------- Follower Combat Kills 81 Cogmind --------- Core Integrity 0/250 Matter 254/300 Energy 97/100 System Corruption 0% Temperature Cool (0) Movement Rolling (140) Ox4 Location -9/Mines Parts ------- > --- POWER (1) -------- (None) > --- PROPULSION (2) --- Wheel > --- UTILITY (2) ------ Improved Heat Sink High-capacity Storage Unit > --- WEAPON (2) ------- (None) > --- INVENTORY (20) --- Ion Engine Ion Engine Wheel Wheel Improved Heat Sink High-capacity Storage Unit High-capacity Battery (250) High-capacity Matter Pod (200) High-capacity Matter Pod (200) Sensor Array Experimental Sensor Array Improved Terrain Scanner Hacking Suite Tractor Beam Sensor Drone Bay (19/20) Peak State ------------ > --- POWER ------------ Ion Engine > --- PROPULSION ------- Light Treads Light Treads > --- UTILITY ---------- High-capacity Storage Unit Experimental Sensor Array > --- WEAPON ----------- Assault Rifle Light Assault Rifle > --- INVENTORY -------- Ion Engine Wheel Wheel Improved Heat Sink Improved Heat Sink High-capacity Storage Unit High-capacity Battery High-capacity Matter Pod High-capacity Matter Pod Sensor Array Hacking Suite Tractor Beam Sensor Drone Bay Light Assault Rifle Rocket Launcher [Rating: 17] Favorites ----------- Power Ion Engine Engine Ion Engine Propulsion Light Treads Treads Light Treads Leg Aluminum Leg Wheel Wheel Utility Improved Heat Sink Device Improved Heat Sink Storage High-capacity Storage Unit Weapon Assault Rifle Energy Gun EM Pulse Gun Ballistic Gun Assault Rifle Launcher Rocket Launcher Build | -11 -10 -10 -10 -9 ------- Run | Yrd Mat Min Exi Min Slots Evolved . | . . . . . Power . | . . . . . Propulsion . | . . . . . Utility . | . . . . . Weapon . | . . . . . Parts Attached 22 | 4 7 8 . 3 Power . | . . . . . Engine . | . . . . . Core . | . . . . . Reactor . | . . . . . Propulsion 6 | 2 1 2 . 1 Treads 3 | 2 1 . . . Leg . | . . . . . Wheel 3 | . . 2 . 1 Hover . | . . . . . Flight . | . . . . . Utility 10 | 1 5 4 . . Device 7 | 1 2 4 . . Storage 3 | . 3 . . . Processor . | . . . . . Hackware . | . . . . . Protection . | . . . . . Artifact . | . . . . . Weapon 6 | 1 1 2 . 2 Energy Gun . | . . . . . Energy Cannon . | . . . . . Ballistic Gun 5 | 1 1 2 . 1 Ballistic Cannon . | . . . . . Launcher 1 | . . . . 1 Special Weapon . | . . . . . Impact Weapon . | . . . . . Slashing Weapon . | . . . . . Piercing Weapon . | . . . . . Special Melee Weapon . | . . . . . Unidentified Prototypes 2 | . . 2 . . Parts Lost 12 | . 2 3 . 7 Power 1 | . . . . 1 Propulsion 3 | . . 1 . 2 Utility 1 | . 1 . . . Weapon 7 | . 1 2 . 4 Highest Loss Streak 7 | . 1 2 . 7 To Critical Strikes . | . . . . . Average Slot Usage (%) 99 | . 99 99 100 99 Engine 13 | . 14 14 14 13 Treads 22 | . 27 26 14 13 Wheel 4 | . . 1 14 13 Device 14 | . 14 14 14 14 Storage 14 | . 14 14 14 14 Ballistic Gun 27 | . 27 28 28 27 Peak Build Rating 17 | 9 10 17 13 13 Average Rating 11 | 7 9 11 13 12 On Entrance 10 | 6 9 10 13 13 Naked Turns . | . . . . . Heaviest Build 63 | 15 50 63 49 49 Greatest Support 40 | 40 40 40 10 10 Greatest Overweight (x) 4 | . 1 4 4 4 Average Overweight (x) 1 | . . 1 4 4 Largest Inventory Capacity 20 | 8 20 20 20 20 Average Capacity 18 | 8 15 20 20 20 Most Carried 18 | 6 13 18 18 18 Average Carried 13 | 3 8 14 18 17 Final Capacity 20 | 8 20 20 20 20 Final Carried 18 | 3 11 18 18 15 Class Distribution -------------------- 100% | Mutant Dominant Class ---------------- Mutant | -10/Materials Mutant | -10/Mines Mutant | -10/Exiles Mutant | -9/Mines Resources | -11 -10 -10 -10 -9 ----------- Run | Yrd Mat Min Exi Min Matter Collected 1186 | 252 631 283 . 20 Remotely . | . . . . . Salvage Created 1126 | 68 572 445 . 41 Parts 86 | 5 46 30 . 5 Haulers Intercepted . | . . . . . Recyclers Shooed 3 | . 3 . . . Parts Field Recycled . | . . . . . Retrieved Matter . | . . . . . Parts Self-Destructed . | . . . . . Prevented . | . . . . . Kills | -11 -10 -10 -10 -9 ------- Run | Yrd Mat Min Exi Min Combat Hostiles Destroyed 22 | . 14 6 . 2 Guns 21 | . 14 6 . 1 AOE 1 | . . . . 1 Classes Destroyed 8 | 2 5 1 . . Worker 1 | . . 1 . . Builder 2 | . 1 1 . . Tunneler 5 | 1 1 3 . . Recycler 2 | 1 . 1 . . Operator 1 | . 1 . . . Watcher 3 | . 3 . . . Swarmer 7 | . 6 . . 1 Grunt 15 | . 8 6 . 1 Best Kill Streak 4 | 2 4 3 . 1 Combat Bots Only 3 | . 3 2 . 1 Max Kills in Single Turn 1 | 1 1 1 . 1 Gunslinging . | . . . . . Exploded 1 | . . . . 1 Melee . | . . . . . Uniques/NPCs Destroyed . | . . . . . Combat | -11 -10 -10 -10 -9 -------- Run | Yrd Mat Min Exi Min Hostile Shots Fired 126 | . 65 35 . 26 Missed 36 | . 22 10 . 4 Damage Taken 1547 | . 518 362 . 667 Core 276 | . 61 18 . 197 Absorbed by Shields . | . . . . . Regen/Repaired (Parts) 72 | . 72 . . . Core Remaining (%) 100 | 100 . . . . Volleys Fired 118 | 2 62 38 . 16 Largest 2 | 2 2 2 . 2 Hottest 40 | 40 40 40 . 40 Shots Fired 224 | 4 122 75 . 23 Gun 221 | 4 122 75 . 20 Cannon . | . . . . . Launcher 3 | . . . . 3 Special . | . . . . . Kinetic 221 | 4 122 75 . 20 Thermal . | . . . . . Explosive 3 | . . . . 3 Electromagnetic . | . . . . . Robot Hit Streak 17 | 2 17 17 . 3 Robot Miss Streak 3 | . 3 1 . 3 Penetration Max . | . . . . . Secondary Targets 5 | . 4 1 . . Max Gunslinging Chain 1 | . 1 1 . . Shots Hit Robots 158 | 2 83 61 . 12 Core Hits 67 | 2 32 28 . 5 Critical Kills 1 | . . 1 . . Critical Parts Destroyed . | . . . . . Critical Strikes 1 | . . 1 . . Destroy 1 | . . 1 . . Melee Attacks . | . . . . . Impact . | . . . . . Slashing . | . . . . . Piercing . | . . . . . Sneak Attacks . | . . . . . Combat Hostiles . | . . . . . Follow-up Attacks . | . . . . . Damage Inflicted 2023 | 26 1102 675 . 220 Guns 1907 | 26 1102 662 . 117 Cannons . | . . . . . Explosions 103 | . . . . 103 Melee . | . . . . . Ramming 13 | . . 13 . . Kinetic 1907 | 26 1102 662 . 117 Thermal . | . . . . . Explosive 103 | . . . . 103 Electromagnetic . | . . . . . Impact . | . . . . . Slashing . | . . . . . Piercing . | . . . . . Highest Corruption . | . . . . . Average Corruption . | . . . . . Corruption Purged . | . . . . . Corruption Blocked . | . . . . . Overload Shots . | . . . . . Overflow Damage . | . . . . . Projectiles . | . . . . . Explosions . | . . . . . Melee . | . . . . . Knockbacks . | . . . . . Impact . | . . . . . Kinetic . | . . . . . Secondary . | . . . . . Self-Inflicted Damage 11 | . . . . 11 Shots 1 | . . . . 1 Rammed 5 | . . 5 . . Targets Rammed 5 | . . 5 . . Kicked . | . . . . . Crushed . | . . . . . Highest Temperature 5 | . 5 . . . Average Temperature 2 | . 2 . . . Received Heat Transfer 414 | . 183 204 . 27 Siege Activations . | . . . . . Robots Corrupted . | . . . . . Combat Hostiles . | . . . . . Parts Fried . | . . . . . Impact Corruptions . | . . . . . Robots Melted . | . . . . . Combat Hostiles . | . . . . . Parts Melted . | . . . . . Heat Transferred . | . . . . . Parts Sabotaged . | . . . . . Parts Stolen . | . . . . . Parts Stripped . | . . . . . Power Chain Reactions . | . . . . . Alert | -11 -10 -10 -10 -9 ------- Run | Yrd Mat Min Exi Min Peak Influence 270 | 10 270 145 . 188 Initial 90 | . 6 90 . . Average 65 | 6 117 40 . 49 Maximum Alert Level 1 | . 1 . . . Low Security (%) 93 | 100 78 100 . 100 Level 1 6 | . 21 . . . Level 2 . | . . . . . Level 3 . | . . . . . Level 4 . | . . . . . Level 5 . | . . . . . High Security . | . . . . . Max Security . | . . . . . Squads Dispatched 4 | . 4 . . . Investigation 2 | . 2 . . . Extermination . | . . . . . Reinforcement 2 | . 2 . . . Assault . | . . . . . Garrison . | . . . . . Intercept . | . . . . . Searches Triggered . | . . . . . Construction Impeded . | . . . . . Haulers Reinforced . | . . . . . Active Scanning Responses . | . . . . . Cargo Convoy Interrupts . | . . . . . Stealth | -11 -10 -10 -10 -9 --------- Run | Yrd Mat Min Exi Min Distress Signals 1 | . 1 . . . Communications Jammed . | . . . . . Distress Signals . | . . . . . Times Spotted 36 | . 22 6 . 8 Peak Tracking Total 4 | . 3 2 . 4 Tactical Retreats 2 | . 1 . . 1 Traps | -11 -10 -10 -10 -9 ------- Run | Yrd Mat Min Exi Min Traps Triggered . | . . . . . Indirectly . | . . . . . Trap Hack Attempts . | . . . . . Triggered . | . . . . . Disarmed 2 | . 2 . . . Reprogrammed . | . . . . . Reused . | . . . . . Traps Extracted . | . . . . . Installed . | . . . . . Triggered 3 | . . . . 3 Machines | -11 -10 -10 -10 -9 ---------- Run | Yrd Mat Min Exi Min Machines Disabled . | . . . . . Max in Single Turn . | . . . . . Machines Repaired . | . . . . . Machines Dismantled . | . . . . . Machines Sabotaged . | . . . . . Overloaded Fab Kills . | . . . . . Hacking | -11 -10 -10 -10 -9 --------- Run | Yrd Mat Min Exi Min Machines Accessed 10 | . 9 1 . . Terminals 6 | . 6 . . . Fabricators . | . . . . . Repair Stations 1 | . 1 . . . Recycling Units 2 | . 2 . . . Scanalyzers . | . . . . . Garrison Access . | . . . . . Total Hacks 25 | . 24 1 . . Successful 14 | . 13 1 . . Failed 11 | . 11 . . . Catastrophic . | . . . . . Database Lockouts . | . . . . . Manual 19 | . 19 . . . Terminals 19 | . 19 . . . Fabricators . | . . . . . Repair Stations 2 | . 2 . . . Recycling Units 3 | . 3 . . . Scanalyzers . | . . . . . Garrison Access . | . . . . . Terminal Hacks 6 | . 5 1 . . Robot Analysis 3 | . 3 . . . Prototype ID Bank 1 | . 1 . . . Open Door 1 | . . 1 . . Disarm Traps 1 | . 1 . . . Fabricator Hacks . | . . . . . Repair Station Hacks 2 | . 2 . . . Scan Component 1 | . 1 . . . Repair 1 | . 1 . . . Recycling Unit Hacks . | . . . . . Scanalyzer . | . . . . . Garrison Access Hacks . | . . . . . Unauthorized Hacks 6 | . 6 . . . Terminals 4 | . 4 . . . Botnet 4 | . 4 . . . Fabricators . | . . . . . Repair Stations . | . . . . . Recycling Units 2 | . 2 . . . Tunnel 2 | . 2 . . . Scanalyzers . | . . . . . Garrison Access . | . . . . . Data Cores Recovered . | . . . . . Used . | . . . . . Hacking Detections 8 | . 8 . . . Full Trace Events . | . . . . . Feedback Events . | . . . . . Feedback Blocked . | . . . . . Robot Schematics Acquired . | . . . . . Robots Built . | . . . . . Authchips . | . . . . . Time . | . . . . . Total Robot Build Rating . | . . . . . Part Schematics Acquired . | . . . . . Parts Built . | . . . . . Authchips . | . . . . . Time . | . . . . . Total Part Build Rating . | . . . . . Parts Repaired 1 | . 1 . . . Time 26 | . 26 . . . Parts Recycled . | . . . . . Recycled Matter . | . . . . . Retrieved Matter . | . . . . . Retrieved Components . | . . . . . Parts Scanalyzed . | . . . . . Part Schematics Acquired . | . . . . . Parts Damaged . | . . . . . Bothacking | -11 -10 -10 -10 -9 ------------ Run | Yrd Mat Min Exi Min Used RIF Installer . | . . . . . Robots Hacked . | . . . . . Non-combat . | . . . . . Combat . | . . . . . Robot Hacks Applied . | . . . . . Relay Couplers Released . | . . . . . Fabnet Peak Effective % . | . . . . . Robots Rewired . | . . . . . Allies Hacked . | . . . . . Hacks Repelled . | . . . . . Allies | -11 -10 -10 -10 -9 -------- Run | Yrd Mat Min Exi Min Total Allies 3 | . . . . 3 Largest Group 3 | . . . . 3 Highest-Rated Group 40 | . . . . 40 Highest-Rated Ally 16 | . . . . 16 Total Orders 1 | . . 1 . . RETURN 1 | . . 1 . . Ally Attacks 36 | . . . . 36 Total Damage 298 | . . . . 298 Kills 7 | . . . . 7 Allies Corrupted . | . . . . . Allies Melted . | . . . . . Intel | -11 -10 -10 -10 -9 ------- Run | Yrd Mat Min Exi Min Robot Analysis Total 3 | . 3 . . . Derelict Logs Recovered 3 | . . 2 . 1 Drone Launches 21 | . . 21 . . Drone Recoveries 20 | . . 20 . . Exploration | -11 -10 -10 -10 -9 ------------- Run | Yrd Mat Min Exi Min Turns Passed 5096 | 33 1437 1964 315 1347 Spaces Moved 1797 | 13 648 761 226 149 Core . | . . . . . Treads 1322 | 10 648 664 . . Legs 3 | 3 . . . . Wheels 472 | . . 97 226 149 Hover . | . . . . . Flight . | . . . . . Fastest Speed 120 | 120 160 140 140 140 Average Speed 187 | 150 168 227 140 140 Slowest Speed 320 | 160 240 320 140 140 Overloaded Moves . | . . . . . Propulsion Burnouts . | . . . . . Robots Hopped . | . . . . . Cave-ins Triggered . | . . . . . Exploration Rate (%) 56 | 2 99 99 59 22 Regions Visited 4 Branch Regions 3 Pre-discovered Areas 5 | . 2 2 . 1 Known Exits Taken . | . . . . . Unknown Exits Taken 4 | 1 1 1 1 . Scrap Searched 3 | . . 3 . . Spaces Dug . | . . . . . Terrain Destroyed 34 | . . . . 34 Melee . | . . . . . Projectile . | . . . . . AOE 34 | . . . . 34 Terrain Rammed . | . . . . . Walls Destroyed . | . . . . . Machines Disabled . | . . . . . Actions | -11 -10 -10 -10 -9 --------- Run | Yrd Mat Min Exi Min Total 3301 | 24 873 912 225 1267 Wait 1328 | 1 138 90 . 1099 Move 1793 | 12 647 760 225 149 Hop . | . . . . . Pick Up 22 | 1 12 9 . . Fast Attach 4 | 1 2 1 . . Attach 10 | 3 1 3 . 3 Detach 1 | . . 1 . . Swap 8 | . 4 4 . . Drop 12 | 4 7 1 . . Fire 118 | 2 62 38 . 16 Melee . | . . . . . Ram . | . . . . . Kick . | . . . . . Crush 5 | . . 5 . . Escape Stasis . | . . . . . Rewire . | . . . . . Trap . | . . . . . Miscellaneous . | . . . . . Route ------- -11/Scrapyard -10/Materials (discovered 4 exits: [*Mat x3] / *Min) -10/Mines (discovered 4 exits: [*Mat x2] / [*Exi] / [*Sub]) -10/Exiles (discovered 2 exits: [*Min x2]) -9/Mines (discovered 1 exit: Mat) History --------- Turn | Location | Event 1 | -11/Scrapyard | Discovered new exit (range 3) 34 | -11/Scrapyard | Entered Materials 300 | -10/Materials | Build established: Mutant 424 | -10/Materials | Discovered new exit (range 11) 578 | -10/Materials | Discovered new exit (range 3) 782 | -10/Materials | Discovered new exit (range 10) 835 | -10/Materials | Repaired Lgt. Treads 1165 | -10/Materials | Discovered new exit (range 9) 1471 | -10/Materials | Entered Mines 1704 | -10/Mines | Received a Rocket Launcher from a helpful Derelict 1819 | -10/Mines | Found the Drone Emporium 1835 | -10/Mines | Found Prototype Device 1835 | -10/Mines | Identified Sensor Drone Bay 2113 | -10/Mines | Learned location of Zion (-7) 2246 | -10/Mines | Discovered new exit (range 5) 2460 | -10/Mines | Found a damaged Exp. Sensor Array with a note attached 2465 | -10/Mines | Found Prototype Device 2466 | -10/Mines | Identified Exp. Sensor Array 2619 | -10/Mines | Discovered new exit (range 15) 2776 | -10/Mines | Deemed a non-threat by the Exiles lab entrance 2776 | -10/Mines | Discovered new exit (range 5) 2995 | -10/Mines | Discovered new exit (range 11) 3435 | -10/Mines | Entered Exiles 3458 | -10/Exiles | Discovered new exit (range 15) 3475 | -10/Exiles | Met 8R-AWN 3498 | -10/Exiles | Met EX-HEX 3553 | -10/Exiles | Met EX-DEC 3734 | -10/Exiles | Discovered new exit (range 14) 3750 | -10/Exiles | Entered Mines 3755 | -9/Mines | Met a Derelict bent on vengeance 3756 | -9/Mines | Assisted by bots powering up and referring to "LRC-V3" 3858 | -9/Mines | Identified exit to Materials 3884 | -9/Mines | Assembled infested the area 5042 | -9/Mines | Learned location of Storage (-8) 5081 | -9/Mines | Core integrity fell below 50% 5088 | -9/Mines | Core integrity fell below 20% 5097 | -9/Mines | Destroyed by D-53 Grenadier with Mini Grenade Launcher Last Messages --------------- 05078_ Wheel destroyed. 05080_ D-53 Grenadier heat spikes uncontrollably. 05080_ Trooper 2b destroyed. 05080_ D-53 Grenadier destroyed. 05082_ K-01 Serf destroyed. 05083_ G-47 Trooper destroyed. 05084_ Destroyed Sml. Laser. 05085_ The unstable cave ceiling collapses. 05085_ G-34 Mercenary destroyed. 05086_ The unstable cave ceiling collapses. 05087_ Rocket Launcher destroyed. 05088_ The unstable cave ceiling collapses. 05088_ U-05 Engineer lays Concrete. 05090_ The unstable cave ceiling collapses. 05091_ Lgt. Assault Rifle destroyed. 05091_ U-05 Engineer builds a Wall. 05094_ The unstable cave ceiling collapses. 05095_ U-05 Engineer lays Concrete. 05096_ D-53 Grenadier suffers critical hit (Burn). 05097_ U-05 Engineer builds a Wall. Map ----- +----------------------------------------------------+ | ???????????????????????????????????????????? | | ???????????????????????????????????????????? | | ???????????????????????????????????????????? | | ???????????????????????????????????????????? | | ???????????????????????????????????????????? | | ???????????????????????????????????????????? | | ???????????????????????????????????????????? | | ?????????????????????????????????????